[Event "NJSK 2022 Jeugd C"]
[Site "Almelo, Netherlands"]
[Date "2022.05.06"]
[Round "8.12"]
[White "Kumar, Prayan Sai"]
[Black "Folkers, Sono"]
[Result "1-0"]
[TimeControl "90min + 30sec/move"]
[WhiteElo "1562"]
[BlackElo "1519"]

1. d4 {[%clk 01:30:58]} {[%emt 00:00:02]} Nf6 {[%clk 01:30:57]} {[%emt
00:00:03]} 2. Nf3 {[%clk 01:31:17]} {[%emt 00:00:12]} e6 {[%clk 01:31:06]}
{[%emt 00:00:19]} 3. Bf4 {[%clk 01:31:39]} {[%emt 00:00:09]} c5 {[%clk
01:31:16]} {[%emt 00:00:20]} 4. e3 {[%clk 01:31:59]} {[%emt 00:00:10]} d5
{[%clk 01:31:36]} {[%emt 00:00:09]} 5. c3 {[%clk 01:31:58]} {[%emt 00:00:32]}
Nh5 {[%clk 01:31:35]} {[%emt 00:00:31]} 6. Bg3 {[%clk 01:30:03]} {[%emt
00:02:25]} Nxg3 {[%clk 01:31:52]} {[%emt 00:00:13]} 7. hxg3 {[%clk 01:30:27]}
{[%emt 00:00:05]} Qb6 {[%clk 01:31:11]} {[%emt 00:01:11]} 8. Qc2 {[%clk
01:30:00]} {[%emt 00:00:57]} h6 {[%clk 01:29:16]} {[%emt 00:02:24]} 9. Nbd2
{[%clk 01:29:46]} {[%emt 00:00:45]} Nc6 {[%clk 01:29:10]} {[%emt 00:00:36]} 10.
Bd3 {[%clk 01:28:38]} {[%emt 00:01:38]} cxd4 {[%clk 01:27:16]} {[%emt
00:02:24]} 11. cxd4 {[%clk 01:26:59]} {[%emt 00:02:09]} Nb4 {[%clk 01:23:32]}
{[%emt 00:04:14]} 12. Qb3 {[%clk 01:27:08]} {[%emt 00:00:22]} Nxd3+ {[%clk
01:23:04]} {[%emt 00:00:57]} 13. Qxd3 {[%clk 01:27:18]} {[%emt 00:00:20]} Bd7
{[%clk 01:21:24]} {[%emt 00:02:10]} 14. a4 {[%clk 01:20:03]} {[%emt 00:07:45]}
a5 {[%clk 01:18:26]} {[%emt 00:03:29]} 15. O-O {[%clk 01:19:21]} {[%emt
00:01:12]} Bd6 {[%clk 01:17:42]} {[%emt 00:01:14]} 16. Ne5 {[%clk 01:11:27]}
{[%emt 00:08:24]} Bxe5 {[%clk 01:15:45]} {[%emt 00:02:26]} 17. dxe5 {[%clk
01:11:41]} {[%emt 00:00:16]} O-O {[%clk 01:14:25]} {[%emt 00:01:50]} 18. b3
{[%clk 01:10:29]} {[%emt 00:01:42]} Bc6 {[%clk 01:12:24]} {[%emt 00:02:31]} 19.
Nf3 {[%clk 01:10:30]} {[%emt 00:00:29]} Rfd8 {[%clk 01:11:42]} {[%emt
00:01:12]} 20. Nd4 {[%clk 01:09:50]} {[%emt 00:01:10]} Rdc8 {[%clk 01:09:02]}
{[%emt 00:03:11]} 21. Rfc1 {[%clk 01:07:21]} {[%emt 00:02:58]} Rc7 {[%clk
01:02:47]} {[%emt 00:06:43]} 22. Rc2 {[%clk 01:02:37]} {[%emt 00:05:16]} Bd7
{[%clk 00:58:29]} {[%emt 00:04:48]} 23. Rac1 {[%clk 00:56:47]} {[%emt
00:06:21]} Rac8 {[%clk 00:58:11]} {[%emt 00:00:47]} 24. g4 {[%clk 00:50:17]}
{[%emt 00:06:59]} g6 {[%clk 00:53:44]} {[%emt 00:04:57]} 25. f4 {[%clk
00:39:40]} {[%emt 00:11:09]} Kg7 {[%clk 00:46:34]} {[%emt 00:07:36]} 26. g3
{[%clk 00:31:10]} {[%emt 00:09:03]} Rxc2 {[%clk 00:38:41]} {[%emt 00:08:23]} 27.
Rxc2 {[%clk 00:31:33]} {[%emt 00:00:07]} Rxc2 {[%clk 00:37:23]} {[%emt
00:01:48]} 28. Qxc2 {[%clk 00:30:21]} {[%emt 00:01:41]} f6 {[%clk 00:30:00]}
{[%emt 00:07:53]} 29. Qc3 {[%clk 00:23:56]} {[%emt 00:06:56]} fxe5 {[%clk
00:28:02]} {[%emt 00:02:28]} 30. fxe5 {[%clk 00:23:14]} {[%emt 00:01:11]} Kf7
{[%clk 00:27:34]} {[%emt 00:00:58]} 31. Qc2 {[%clk 00:20:35]} {[%emt 00:03:10]}
Qd8 {[%clk 00:26:33]} {[%emt 00:01:30]} 32. Nf3 {[%clk 00:11:21]} {[%emt
00:09:44]} g5 {[%clk 00:26:25]} {[%emt 00:00:38]} 33. Qh7+ {[%clk 00:10:43]}
{[%emt 00:01:09]} Ke8 {[%clk 00:25:17]} {[%emt 00:01:38]} 34. Qh8+ {[%clk
00:07:09]} {[%emt 00:04:04]} Ke7 {[%clk 00:25:37]} {[%emt 00:00:10]} 35. Qxh6
{[%clk 00:07:23]} {[%emt 00:00:16]} Qc7 {[%clk 00:25:04]} {[%emt 00:01:03]} 36.
Qxg5+ {[%clk 00:05:56]} {[%emt 00:01:57]} Ke8 {[%clk 00:25:15]} {[%emt
00:00:18]} 37. Qg6+ {[%clk 00:05:48]} {[%emt 00:00:40]} Kd8 {[%clk 00:25:17]}
{[%emt 00:00:28]} 38. Qd3 {[%clk 00:05:48]} {[%emt 00:00:29]} Kc8 {[%clk
00:24:40]} {[%emt 00:01:07]} 39. g5 {[%clk 00:04:49]} {[%emt 00:01:29]} d4
{[%clk 00:23:06]} {[%emt 00:02:05]} 40. exd4 {[%clk 00:04:15]} {[%emt
00:01:04]} Qc1+ {[%clk 00:23:18]} {[%emt 00:00:17]} 41. Kh2 {[%clk 00:04:34]}
{[%emt 00:00:11]} Bc6 {[%clk 00:23:24]} {[%emt 00:00:23]} 42. g6 {[%clk
00:02:42]} {[%emt 00:02:23]} Qh6+ {[%clk 00:23:06]} {[%emt 00:00:48]} 43. Kg2
{[%clk 00:02:58]} {[%emt 00:00:14]} b6 {[%clk 00:22:02]} {[%emt 00:01:34]} 44.
Kf2 {[%clk 00:01:52]} {[%emt 00:01:36]} Qf8 {[%clk 00:21:34]} {[%emt 00:00:57]}
45. Qe3 {[%clk 00:01:24]} {[%emt 00:00:59]} Kb7 {[%clk 00:20:59]} {[%emt
00:01:04]} 46. Qf4 {[%clk 00:01:12]} {[%emt 00:00:42]} Qa3 {[%clk 00:18:09]}
{[%emt 00:03:21]} 47. g7 {[%clk 00:00:40]} {[%emt 00:01:02]} Qb2+ {[%clk
00:18:09]} {[%emt 00:00:30]} 48. Qd2 {[%clk 00:00:41]} {[%emt 00:00:29]} Qxb3
{[%clk 00:18:13]} {[%emt 00:00:26]} 49. Nh4 {[%clk 00:00:59]} {[%emt 00:00:11]}
Qd5 {[%clk 00:17:04]} {[%emt 00:01:40]} 50. g8=Q {[%clk 00:01:17]} {[%emt
00:00:12]} Qh1 {[%clk 00:16:44]} {[%emt 00:00:50]} 51. Qg7+ {[%clk 00:01:15]}
{[%emt 00:00:32]} Ka6 {[%clk 00:17:01]} {[%emt 00:00:13]} 52. Qd3+ {[%clk
00:01:12]} {[%emt 00:00:34]} b5 {[%clk 00:17:12]} {[%emt 00:00:19]} 53. Ke3
{[%clk 00:00:45]} {[%emt 00:00:56]} Qg1+ {[%clk 00:16:13]} {[%emt 00:01:29]} 54.
Kf4 {[%clk 00:01:06]} {[%emt 00:00:09]} Qf2+ {[%clk 00:14:27]} {[%emt
00:02:16]} 55. Nf3 {[%clk 00:01:17]} {[%emt 00:00:19]} Qb2 {[%clk 00:14:14]}
{[%emt 00:00:42]} 56. Qgg6 {[%clk 00:00:59]} {[%emt 00:00:48]} Qa2 {[%clk
00:13:19]} {[%emt 00:01:26]} 57. Qc2 {[%clk 00:00:50]} {[%emt 00:00:38]} Qd5
{[%clk 00:12:24]} {[%emt 00:01:26]} 58. Qgd3 {[%clk 00:00:47]} {[%emt
00:00:34]} Kb6 {[%clk 00:11:53]} {[%emt 00:01:01]} 59. Qc5+ {[%clk 00:01:06]}
{[%emt 00:00:10]} Qxc5 {[%clk 00:10:11]} {[%emt 00:02:12]} 60. dxc5+ {[%clk
00:01:30]} {[%emt 00:00:06]} Kxc5 {[%clk 00:10:28]} {[%emt 00:00:12]} 61. axb5
{[%clk 00:01:54]} {[%emt 00:00:07]} Bxb5 {[%clk 00:10:39]} {[%emt 00:00:20]} 62.
Qa3+ {[%clk 00:02:15]} {[%emt 00:00:08]} Kb6 {[%clk 00:10:17]} {[%emt
00:00:52]} 63. Qd6+ {[%clk 00:02:28]} {[%emt 00:00:17]} Bc6 {[%clk 00:10:31]}
{[%emt 00:00:16]} 64. Qxe6 {[%clk 00:02:50]} {[%emt 00:00:08]} Kc5 {[%clk
00:10:48]} {[%emt 00:00:14]} 65. Qa2 {[%clk 00:03:07]} {[%emt 00:00:12]} Kb4
{[%clk 00:11:01]} {[%emt 00:00:17]} 66. e6 {[%clk 00:03:23]} {[%emt 00:00:13]}
a4 {[%clk 00:11:16]} {[%emt 00:00:16]} 67. e7 {[%clk 00:03:40]} {[%emt
00:00:14]} a3 {[%clk 00:11:40]} {[%emt 00:00:06]} 68. g4 {[%clk 00:03:40]}
{[%emt 00:00:30]} Be8 {[%clk 00:11:54]} {[%emt 00:00:16]} 69. g5 {[%clk
00:03:54]} {[%emt 00:00:15]} Bg6 {[%clk 00:12:05]} {[%emt 00:00:19]} 70. Ne5
{[%clk 00:04:03]} {[%emt 00:00:21]} Be8 {[%clk 00:12:24]} {[%emt 00:00:11]} 71.
g6 {[%clk 00:04:25]} {[%emt 00:00:08]} Bxg6 {[%clk 00:12:30]} {[%emt 00:00:24]}
72. Nxg6 {[%clk 00:04:47]} {[%emt 00:00:08]} Ka4 {[%clk 00:12:49]} {[%emt
00:00:11]} 73. e8=Q+ {[%clk 00:05:34]} {[%emt 00:00:12]} Kb4 {[%clk 00:13:36]}
{[%emt 00:00:15]} 74. Qb8+ {[%clk 00:05:47]} {[%emt 00:00:17]} Kc3 {[%clk
00:13:54]} {[%emt 00:00:11]} 75. Qab3+ {[%clk 00:06:05]} {[%emt 00:00:12]} Kd2
{[%clk 00:14:12]} {[%emt 00:00:11]} 76. Qd6+ {[%clk 00:06:21]} {[%emt
00:00:15]} Ke1 {[%clk 00:14:29]} {[%emt 00:00:10]} 77. Qdd1+ {[%clk 00:06:40]}
{[%emt 00:00:13]} 1-0

[Event "NJSK 2022 Jeugd C"]
[Site "Almelo, Netherlands"]
[Date "2022.05.07"]
[Round "9.1"]
[White "De Winter, Arthur"]
[Black "Kazarjan, Gachatur"]
[Result "1-0"]
[TimeControl "90min + 30sec/move"]
[WhiteElo "2138"]
[BlackElo "1661"]

1. e4 {[%clk 01:30:56]} {[%emt 00:00:03]} c5 {[%clk 01:30:55]} {[%emt
00:00:06]} 2. Nf3 {[%clk 01:31:23]} {[%emt 00:00:03]} Nc6 {[%clk 01:31:20]}
{[%emt 00:00:05]} 3. d4 {[%clk 01:31:51]} {[%emt 00:00:02]} cxd4 {[%clk
01:31:45]} {[%emt 00:00:05]} 4. Nxd4 {[%clk 01:32:18]} {[%emt 00:00:02]} g6
{[%clk 01:32:09]} {[%emt 00:00:07]} 5. c4 {[%clk 01:32:46]} {[%emt 00:00:02]}
Bg7 {[%clk 01:32:35]} {[%emt 00:00:04]} 6. Be3 {[%clk 01:33:12]} {[%emt
00:00:03]} Nf6 {[%clk 01:32:59]} {[%emt 00:00:06]} 7. Nc3 {[%clk 01:33:40]}
{[%emt 00:00:03]} d6 {[%clk 01:33:17]} {[%emt 00:00:12]} 8. Be2 {[%clk
01:33:52]} {[%emt 00:00:17]} O-O {[%clk 01:33:38]} {[%emt 00:00:10]} 9. O-O
{[%clk 01:34:17]} {[%emt 00:00:04]} Bd7 {[%clk 01:34:04]} {[%emt 00:00:04]} 10.
h3 {[%clk 01:34:44]} {[%emt 00:00:02]} Nxd4 {[%clk 01:34:10]} {[%emt 00:00:25]}
11. Bxd4 {[%clk 01:35:11]} {[%emt 00:00:03]} Bc6 {[%clk 01:34:33]} {[%emt
00:00:08]} 12. Qc2 {[%clk 01:35:33]} {[%emt 00:00:07]} Nd7 {[%clk 01:34:24]}
{[%emt 00:00:40]} 13. Bxg7 {[%clk 01:35:53]} {[%emt 00:00:09]} Kxg7 {[%clk
01:34:48]} {[%emt 00:00:06]} 14. Rad1 {[%clk 01:36:03]} {[%emt 00:00:20]} a5
{[%clk 01:34:35]} {[%emt 00:00:45]} 15. Bg4 {[%clk 01:36:26]} {[%emt 00:00:05]}
Nc5 {[%clk 01:33:13]} {[%emt 00:01:52]} 16. e5 {[%clk 01:36:13]} {[%emt
00:00:43]} Qc7 {[%clk 01:33:28]} {[%emt 00:00:16]} 17. exd6 {[%clk 01:35:12]}
{[%emt 00:01:30]} exd6 {[%clk 01:33:50]} {[%emt 00:00:09]} 18. Qd2 {[%clk
01:31:55]} {[%emt 00:03:47]} Rad8 {[%clk 01:32:11]} {[%emt 00:02:08]} 19. Rfe1
{[%emt 00:17:26]} Rfe8 {[%clk 01:20:00]} 20. Qf4 {[%clk 01:19:01]} {[%emt
00:09:08]} f6 {[%clk 01:07:13]} {[%emt 00:13:17]} 21. Rxe8 {[%clk 01:16:26]}
{[%emt 00:03:05]} Rxe8 {[%clk 01:06:47]} {[%emt 00:00:57]} 22. Rxd6 {[%clk
01:15:38]} {[%emt 00:01:17]} Re1+ {[%clk 01:04:35]} {[%emt 00:02:42]} 23. Kh2
{[%clk 01:15:01]} {[%emt 00:01:07]} Ne6 {[%clk 01:04:30]} {[%emt 00:00:36]} 24.
Qg3 {[%clk 01:14:14]} {[%emt 00:01:16]} Qf7 {[%clk 00:58:23]} {[%emt 00:06:37]}
25. f4 {[%clk 01:12:31]} {[%emt 00:02:13]} Rc1 {[%clk 00:55:13]} {[%emt
00:03:40]} 26. Bxe6 {[%clk 01:09:06]} {[%emt 00:03:56]} Qe7 {[%clk 00:51:15]}
{[%emt 00:04:28]} 27. f5 {[%clk 01:08:55]} {[%emt 00:00:41]} g5 {[%clk
00:51:17]} {[%emt 00:00:27]} 28. Rd1 {[%clk 01:06:14]} {[%emt 00:03:11]} Rc2
{[%clk 00:50:59]} {[%emt 00:00:48]} 29. Nd5 {[%clk 01:01:19]} {[%emt 00:05:25]}
Qc5 {[%clk 00:50:23]} {[%emt 00:01:06]} 30. Qc7+ {[%clk 01:01:03]} {[%emt
00:00:47]} Kh6 {[%clk 00:50:49]} {[%emt 00:00:04]} 31. Qf7 {[%clk 01:01:23]}
{[%emt 00:00:10]} Qd6+ {[%clk 00:50:48]} {[%emt 00:00:31]} 32. Kh1 {[%clk
01:01:47]} {[%emt 00:00:05]} Qe5 {[%clk 00:51:13]} {[%emt 00:00:06]} 33. Qf8+
{[%clk 01:02:09]} {[%emt 00:00:07]} 1-0

[Event "NJSK 2022 Jeugd C"]
[Site "Almelo, Netherlands"]
[Date "2022.05.07"]
[Round "9.2"]
[White "Van Batenburg, Mees"]
[Black "Kumar, Prajit Sai"]
[Result "1/2-1/2"]
[TimeControl "90min + 30sec/move"]
[WhiteElo "1713"]
[BlackElo "2042"]

1. d4 {[%clk 01:30:58]} {[%emt 00:00:01]} d5 {[%clk 01:30:57]} {[%emt
00:00:04]} 2. Nc3 {[%clk 01:31:24]} {[%emt 00:00:05]} Nf6 {[%clk 01:30:28]}
{[%emt 00:00:58]} 3. Bf4 {[%clk 01:31:48]} {[%emt 00:00:06]} a6 {[%clk
01:30:28]} {[%emt 00:00:29]} 4. e3 {[%clk 01:32:12]} {[%emt 00:00:05]} Bf5
{[%clk 01:30:39]} {[%emt 00:00:20]} 5. f3 {[%clk 01:32:35]} {[%emt 00:00:07]}
e6 {[%clk 01:30:46]} {[%emt 00:00:23]} 6. g4 {[%clk 01:33:01]} {[%emt
00:00:04]} Bg6 {[%clk 01:31:08]} {[%emt 00:00:07]} 7. h4 {[%clk 01:33:30]}
{[%emt 00:00:02]} h5 {[%clk 01:31:30]} {[%emt 00:00:09]} 8. g5 {[%clk
01:33:56]} {[%emt 00:00:04]} Nfd7 {[%clk 01:31:47]} {[%emt 00:00:12]} 9. Bd3
{[%clk 01:32:45]} {[%emt 00:01:41]} Bxd3 {[%clk 01:32:03]} {[%emt 00:00:14]} 10.
Qxd3 {[%clk 01:33:00]} {[%emt 00:00:15]} c5 {[%clk 01:32:08]} {[%emt 00:00:25]}
11. O-O-O {[%clk 01:26:57]} {[%emt 00:06:32]} Nc6 {[%clk 01:32:14]} {[%emt
00:00:25]} 12. Nge2 {[%clk 01:21:37]} {[%emt 00:05:51]} cxd4 {[%clk 01:32:05]}
{[%emt 00:00:39]} 13. exd4 {[%clk 01:19:51]} {[%emt 00:02:16]} g6 {[%clk
01:32:22]} {[%emt 00:00:12]} 14. Bg3 {[%clk 01:17:10]} {[%emt 00:03:11]} Nb6
{[%clk 01:29:49]} {[%emt 00:03:03]} 15. Nf4 {[%clk 01:12:14]} {[%emt 00:05:26]}
Ne7 {[%clk 01:26:44]} {[%emt 00:03:35]} 16. Rhe1 {[%clk 01:08:19]} {[%emt
00:04:26]} Qd7 {[%clk 01:25:18]} {[%emt 00:01:55]} 17. Nce2 {[%clk 00:44:33]}
{[%emt 00:24:16]} Rc8 {[%clk 01:20:15]} {[%emt 00:05:32]} 18. Qb3 {[%clk
00:41:09]} {[%emt 00:03:54]} Nc4 {[%clk 01:18:53]} {[%emt 00:01:53]} 19. Nd3
{[%clk 00:39:44]} {[%emt 00:01:55]} Na5 {[%clk 00:57:53]} {[%emt 00:21:30]} 20.
Qb6 {[%clk 00:37:23]} {[%emt 00:02:51]} Nc4 {[%clk 00:55:27]} {[%emt 00:02:56]}
21. Qb3 {[%clk 00:37:49]} {[%emt 00:00:05]} 1/2-1/2

[Event "NJSK 2022 Jeugd C"]
[Site "Almelo, Netherlands"]
[Date "2022.05.07"]
[Round "9.3"]
[White "Arnold, Rhys"]
[Black "Van Arendonk, Polle"]
[Result "1-0"]
[TimeControl "90min + 30sec/move"]
[WhiteElo "1846"]
[BlackElo "1784"]

1. e4 {[%clk 01:30:50]} {[%emt 00:00:10]} e6 {[%clk 01:30:57]} {[%emt
00:00:03]} 2. d4 {[%clk 01:31:15]} {[%emt 00:00:04]} d5 {[%clk 01:31:24]}
{[%emt 00:00:04]} 3. Nc3 {[%clk 01:31:40]} {[%emt 00:00:04]} dxe4 {[%clk
01:31:44]} {[%emt 00:00:11]} 4. Nxe4 {[%clk 01:32:04]} {[%emt 00:00:05]} Nd7
{[%clk 01:32:09]} {[%emt 00:00:06]} 5. Nf3 {[%clk 01:31:44]} {[%emt 00:00:50]}
Ngf6 {[%clk 01:32:33]} {[%emt 00:00:08]} 6. Nxf6+ {[%clk 01:31:01]} {[%emt
00:01:11]} Nxf6 {[%clk 01:32:56]} {[%emt 00:00:06]} 7. Bd3 {[%clk 01:31:27]}
{[%emt 00:00:04]} c5 {[%clk 01:32:41]} {[%emt 00:00:45]} 8. Be3 {[%clk
01:30:14]} {[%emt 00:01:44]} Qc7 {[%clk 01:22:16]} {[%emt 00:10:55]} 9. c3
{[%clk 01:29:00]} {[%emt 00:01:43]} Be7 {[%clk 01:16:22]} {[%emt 00:06:25]} 10.
dxc5 {[%clk 01:23:07]} {[%emt 00:06:23]} O-O {[%clk 01:12:13]} {[%emt
00:04:39]} 11. b4 {[%clk 01:22:46]} {[%emt 00:00:51]} e5 {[%clk 01:02:57]}
{[%emt 00:09:46]} 12. Qc2 {[%clk 01:21:53]} {[%emt 00:01:23]} h6 {[%clk
01:00:02]} {[%emt 00:03:25]} 13. O-O {[%clk 01:22:08]} {[%emt 00:00:14]} Ng4
{[%clk 00:54:14]} {[%emt 00:06:18]} 14. Bd2 {[%clk 01:17:40]} {[%emt 00:04:58]}
f5 {[%clk 00:49:52]} {[%emt 00:04:52]} 15. h3 {[%clk 01:17:24]} {[%emt
00:00:46]} e4 {[%clk 00:46:19]} {[%emt 00:04:04]} 16. hxg4 {[%clk 01:16:37]}
{[%emt 00:01:17]} exd3 {[%clk 00:45:03]} {[%emt 00:01:46]} 17. Qxd3 {[%clk
01:16:34]} {[%emt 00:00:33]} fxg4 {[%clk 00:44:59]} {[%emt 00:00:33]} 18. Nd4
{[%clk 01:16:48]} {[%emt 00:00:16]} Bd7 {[%clk 00:38:53]} {[%emt 00:06:36]} 19.
g3 {[%clk 01:15:41]} {[%emt 00:01:37]} Bf6 {[%clk 00:34:56]} {[%emt 00:04:27]}
20. Bf4 {[%clk 01:14:35]} {[%emt 00:01:36]} Qc8 {[%clk 00:23:11]} {[%emt
00:12:16]} 21. Rfe1 {[%clk 01:13:37]} {[%emt 00:01:27]} Bxd4 {[%clk 00:23:16]}
{[%emt 00:00:25]} 22. Qxd4 {[%clk 01:13:39]} {[%emt 00:00:29]} Bc6 {[%clk
00:16:50]} {[%emt 00:06:57]} 23. Re7 {[%clk 01:13:46]} {[%emt 00:00:22]} Rf7
{[%clk 00:15:44]} {[%emt 00:01:37]} 24. Qc4 {[%clk 01:13:42]} {[%emt 00:00:33]}
Qf5 {[%clk 00:15:14]} {[%emt 00:01:00]} 25. Re5 {[%clk 01:10:12]} {[%emt
00:03:59]} Qc2 {[%clk 00:13:46]} {[%emt 00:01:58]} 26. Rae1 {[%clk 01:09:33]}
{[%emt 00:01:09]} Rd8 {[%clk 00:10:35]} {[%emt 00:03:42]} 27. b5 {[%clk
01:06:52]} {[%emt 00:03:11]} Bf3 {[%clk 00:10:02]} {[%emt 00:01:03]} 28. c6
{[%clk 01:06:47]} {[%emt 00:00:34]} bxc6 {[%clk 00:09:47]} {[%emt 00:00:46]} 29.
bxc6 {[%clk 01:07:07]} {[%emt 00:00:09]} Qg6 {[%clk 00:05:39]} {[%emt
00:04:38]} 30. c7 {[%clk 01:06:48]} {[%emt 00:00:50]} Rc8 {[%clk 00:05:16]}
{[%emt 00:00:53]} 31. Re7 {[%clk 00:50:48]} {[%emt 00:16:29]} Qh5 {[%clk
00:04:40]} {[%emt 00:01:07]} 32. Qxf7+ {[%clk 00:50:50]} {[%emt 00:00:27]} Qxf7
{[%clk 00:05:04]} {[%emt 00:00:06]} 33. Rxf7 {[%clk 00:51:10]} {[%emt
00:00:10]} Kxf7 {[%clk 00:05:33]} {[%emt 00:00:02]} 34. Bd6 {[%clk 00:51:32]}
{[%emt 00:00:08]} Bb7 {[%clk 00:04:37]} {[%emt 00:01:26]} 35. Rb1 {[%clk
00:51:16]} {[%emt 00:00:45]} Ba6 {[%clk 00:04:57]} {[%emt 00:00:10]} 36. Rb4
{[%clk 00:50:31]} {[%emt 00:01:15]} Ke6 {[%clk 00:04:55]} {[%emt 00:00:33]} 37.
Ra4 {[%clk 00:49:50]} {[%emt 00:01:11]} Bb5 {[%clk 00:04:42]} {[%emt 00:00:43]}
38. Rd4 {[%clk 00:50:13]} {[%emt 00:00:06]} Ba6 {[%clk 00:04:55]} {[%emt
00:00:17]} 39. a4 {[%clk 00:50:31]} {[%emt 00:00:13]} Bb7 {[%clk 00:04:49]}
{[%emt 00:00:36]} 40. c4 {[%clk 00:50:37]} {[%emt 00:00:24]} h5 {[%clk
00:04:56]} {[%emt 00:00:22]} 41. c5 {[%clk 00:50:43]} {[%emt 00:00:24]} g6
{[%clk 00:05:09]} {[%emt 00:00:18]} 42. Kf1 {[%clk 00:50:56]} {[%emt 00:00:17]}
Kd7 {[%clk 00:05:11]} {[%emt 00:00:27]} 43. Ke1 {[%clk 00:46:12]} {[%emt
00:05:14]} Re8+ {[%clk 00:05:35]} {[%emt 00:00:06]} 44. Kd2 {[%clk 00:46:37]}
{[%emt 00:00:05]} Kc6 {[%clk 00:05:40]} {[%emt 00:00:25]} 45. Bf4 {[%clk
00:44:15]} {[%emt 00:02:52]} Rc8 {[%clk 00:06:03]} {[%emt 00:00:08]} 46. Rb4
{[%clk 00:42:51]} {[%emt 00:01:53]} Ba6 {[%clk 00:06:15]} {[%emt 00:00:19]} 47.
Bd6 {[%clk 00:42:49]} {[%emt 00:00:31]} Re8 {[%clk 00:05:57]} {[%emt 00:00:49]}
48. Rb8 {[%clk 00:43:06]} {[%emt 00:00:12]} Rc8 {[%clk 00:06:23]} {[%emt
00:00:05]} 49. Ke3 {[%clk 00:43:25]} {[%emt 00:00:11]} Kd5 {[%clk 00:06:31]}
{[%emt 00:00:22]} 50. Kf4 {[%clk 00:43:43]} {[%emt 00:00:11]} Ke6 {[%clk
00:06:50]} {[%emt 00:00:12]} 51. Kg5 {[%clk 00:44:05]} {[%emt 00:00:07]} Kf7
{[%clk 00:07:15]} {[%emt 00:00:05]} 52. Rb4 {[%clk 00:43:38]} {[%emt 00:00:56]}
Bd3 {[%clk 00:05:38]} {[%emt 00:02:08]} 53. Rf4+ {[%clk 00:43:51]} {[%emt
00:00:17]} Bf5 {[%clk 00:05:34]} {[%emt 00:00:34]} 54. Rxf5+ {[%clk 00:43:56]}
{[%emt 00:00:25]} gxf5 {[%clk 00:05:58]} {[%emt 00:00:07]} 55. Kxf5 {[%clk
00:44:19]} {[%emt 00:00:06]} Re8 {[%clk 00:02:35]} {[%emt 00:03:54]} 56. c6
{[%clk 00:43:25]} {[%emt 00:01:24]} a5 {[%clk 00:02:03]} {[%emt 00:01:02]} 57.
Bf4 {[%clk 00:42:54]} {[%emt 00:00:59]} Rc8 {[%clk 00:01:54]} {[%emt 00:00:40]}
58. Ke5 {[%clk 00:42:43]} {[%emt 00:00:41]} Ke7 {[%clk 00:01:19]} {[%emt
00:01:06]} 59. Kd5 {[%clk 00:43:07]} {[%emt 00:00:06]} Ra8 {[%clk 00:01:04]}
{[%emt 00:00:44]} 60. Kc5 {[%clk 00:43:31]} {[%emt 00:00:06]} Ke6 {[%clk
00:00:57]} {[%emt 00:00:37]} 61. Kb6 {[%clk 00:43:53]} {[%emt 00:00:07]} Kd5
{[%clk 00:01:04]} {[%emt 00:00:24]} 62. Kb7 {[%clk 00:44:18]} {[%emt 00:00:05]}
Re8 {[%clk 00:01:22]} {[%emt 00:00:12]} 63. c8=Q {[%clk 00:44:30]} {[%emt
00:00:19]} Rxc8 {[%clk 00:01:49]} {[%emt 00:00:02]} 64. Kxc8 {[%clk 00:44:54]}
{[%emt 00:00:07]} Kxc6 {[%clk 00:02:17]} {[%emt 00:00:02]} 65. Kd8 {[%clk
00:45:16]} {[%emt 00:00:07]} Kd5 {[%clk 00:02:35]} {[%emt 00:00:12]} 66. Bd2
{[%clk 00:45:21]} {[%emt 00:00:25]} 1-0